lending/lending_fUSD_20240202
["ID","MTS","AMOUNT","RATE_DAILY","PERIOD"]
[313168895,1706864242565,-150.31,0.00052,120]
[313168896,1706864242590,-150.31,0.00052,120]
[313168897,1706864242612,-150.31,0.00052,120]
[313168898,1706864242636,-150.31,0.00052,120]
[313168899,1706864242658,-150.31,0.00052,120]
[313168900,1706864242681,-150.31,0.00052,120]
[313168901,1706864242705,-150.31,0.00052,120]
[313168902,1706864242728,-150.31,0.00052,120]
[313168903,1706864242752,-150.31,0.00052,120]
[313168904,1706864242776,-150.31,0.00052,120]
[313168905,1706864242804,-150.31,0.00052,120]
[313168906,1706864242828,-150.31,0.00052,120]
[313168907,1706864242855,-150.31,0.00052,120]
[313168908,1706864242879,-150.31,0.00052,120]
[313168909,1706864242903,-150.31,0.00052,120]
[313168910,1706864242926,-150.31,0.00052,120]
[313168911,1706864242949,-150.31,0.00052,120]
[313168912,1706864242971,-150.31,0.00052,120]
[313168913,1706864242995,-150.31,0.00052,120]
[313168914,1706864243018,-150.31,0.00052,120]
[313168915,1706864243041,-150.31,0.00052,120]
[313168916,1706864243065,-150.31,0.00052,120]
[313168917,1706864243088,-150.31,0.00052,120]
[313168918,1706864243110,-150.31,0.00052,120]
[313168919,1706864243133,-150.31,0.00052,120]
[313168920,1706864243155,-150.31,0.00052,120]
[313168921,1706864243177,-150.31,0.00052,120]
[313168922,1706864243201,-5000.0,0.00052,120]
[313168923,1706864243223,-233.737563,0.00052054,120]
[313168924,1706864243250,-157.5325,0.00052054,120]
[313168925,1706864243386,153.78928334,0.00048103,30]
[313168926,1706864243431,153.78928334,0.00048395,30]
[313168927,1706864243467,153.78928334,0.00048475,30]
[313168928,1706864243497,153.78928334,0.00048527,30]
[313168929,1706864243527,153.78928334,0.00048737,30]
[313168930,1706864243557,153.78928334,0.00048791,30]
[313168931,1706864243591,153.78928334,0.00048868,30]
[313168932,1706864243636,153.78928334,0.00049212,30]
[313168933,1706864243670,153.78928334,0.00049214,30]
[313168934,1706864243704,153.78928334,0.00049368,30]
[313168935,1706864243746,153.78928334,0.00049429,30]
[313168936,1706864243780,153.78928334,0.00049607,30]
[313168937,1706864243812,153.78928334,0.00049824,30]
[313168938,1706864243853,153.78928334,0.00050103,60]
[313168939,1706864244194,153.78928334,0.00050132,60]
[313168940,1706864244487,155.97,0.00052055,30]
[313168941,1706864244708,153.78928334,0.00050357,60]
[313168942,1706864245197,153.78928334,0.00050463,60]
[313168943,1706864245908,153.78928334,0.00050498,60]
[313168944,1706864246365,153.78928334,0.00050596,60]
[313168945,1706864246848,153.78928334,0.00050918,60]
[313168946,1706864247320,153.78928334,0.00051071,60]
[313168947,1706864247826,153.78928334,0.00051212,60]
[313168948,1706864248319,153.78928334,0.00051378,60]
[313168949,1706864248815,153.78928356,0.00051409,60]
[313168950,1706864251470,2500.0,0.0005,120]
[313168951,1706864253905,198.28691802,0.000519,120]
[313168952,1706864254188,5000.0,0.0004,30]
[313168953,1706864261753,297.19995302,0.0005,120]
[313168954,1706864272175,5000.0,0.0004,30]
[313168955,1706864275488,2500.0,0.0005,120]
[313168956,1706864292170,5000.0,0.0004,30]
[313168957,1706864299476,2500.0,0.0005,120]
[313168961,1706864310167,620.75062194,0.0004,30]
[313168962,1706864320949,-2500.0,0.0005,120]
[313168963,1706864320975,-210.0,0.00051375,45]
[313168964,1706864403619,1661.39,0.00022421,2]
[313168965,1706864434526,1155.48233878,0.00020697,2]
[313168966,1706864454525,1155.48233878,0.00020697,2]
[313168967,1706864458885,510.73,0.00022407,2]
[313168968,1706864478526,384.25267325,0.00020697,2]
[313168969,1706864479083,2328.73849707,0.00020697,2]
[313168970,1706864482545,155.0,0.00020697,2]
[313168971,1706864495063,938.65725869,0.00020697,2]
[313168972,1706864503831,161.08,0.00022135,2]
[313168973,1706864506531,155.31271408,0.00020697,2]
[313168974,1706864507981,224.65744632,0.00020697,2]
[313168975,1706864513164,722.94,0.00022195,2]
[313168976,1706864518084,156.37,0.00022195,2]
[313168977,1706864538109,7471.77,0.00022237,2]
[313168978,1706864591358,3234.19,0.00022252,2]
[313168979,1706864606559,1954.582436,0.00022396,2]
[313168980,1706864620361,219.15,0.0002233,2]
[313168981,1706864640032,504.07,0.0002233,2]
[313168985,1706864736042,307.39,0.00020357,2]
[313168986,1706864760900,1852.42,0.00022277,2]
[313168987,1706864790902,2204.06733357,0.00022077,2]
[313168988,1706864793205,-500.0,0.00022509,2]
[313168989,1706864793224,-200.0,0.0002251,2]
[313168990,1706864793245,-732.72,0.00022539,2]
[313168991,1706864793266,-715.03,0.00022539,2]
[313168992,1706864793285,-727.88,0.00022539,2]
[313168993,1706864793304,-322.11970839,0.00022539,2]
[313168994,1706864948906,3197.13386433,0.00021982,2]
[313168995,1706864952665,1500.0,0.00021753,2]
[313168996,1706864963226,1004.87,0.00022467,2]
[313168997,1706864968915,316.05520571,0.00021982,2]
[313169012,1706865031519,-389.62029161,0.00022539,2]
[313169013,1706865031528,-388.07499373,0.0002254,2]
[313169014,1706865031576,-328.85500627,0.0002254,2]
[313169015,1706865031585,-1006.41871433,0.0002254,2]
[313169016,1706865031597,-130.86026056,0.0002254,2]
[313169017,1706865031606,-1110.69915141,0.0002254,2]
[313169018,1706865031615,-166.5,0.0002254,2]
[313169019,1706865031625,-200.0,0.00022573,2]
[313169020,1706865031635,-814.69402896,0.00022601,2]
[313169021,1706865031654,-1326.91597104,0.00022601,2]
[313169022,1706865031664,-307.39,0.00022621,2]
[313169023,1706865031673,-154.15,0.00022693,2]
[313169024,1706865031682,-495.93,0.00022743,2]
[313169025,1706865031691,-150.0,0.00022898,2]
[313169026,1706865031700,-500.0,0.00022899,2]
[313169027,1706865031710,-2952.48881112,0.000229,2]
[313169028,1706865031722,-56496.5475886,0.000229,2]
[313169029,1706865031745,-83864.80703507,0.000229,2]
[313169038,1706865037733,-46066.41032504,0.000229,2]
[313169039,1706865037744,-13835.52353281,0.000229,2]
[313169040,1706865037845,-185033.32793475,0.000229,2]
[313169041,1706865037856,-437.34311867,0.000229,2]
[313169042,1706865037865,-153.55670088,0.000229,2]
[313169043,1706865037875,-1237.07062522,0.000229,2]
[313169044,1706865037885,-1363.0,0.00022942,2]
[313169045,1706865037894,-963.768,0.00022942,2]
[313169046,1706865037905,-199.542,0.00022942,2]
[313169047,1706865037915,-950.0,0.00022942,2]
[313169048,1706865037924,-1862.0,0.00022942,2]
[313169049,1706865037934,-170.701,0.00022942,2]
[313169050,1706865037943,-839.0,0.00022942,2]
[313169051,1706865037953,-586.211,0.00022942,2]
[313169052,1706865037962,-215.0,0.00022942,2]
[313169053,1706865037972,-596.0,0.00022942,2]
[313169054,1706865037981,-1941.0,0.00022942,2]
[313169055,1706865037991,-1001.0,0.00022942,2]
[313169056,1706865038000,-150.0,0.00022942,2]
[313169057,1706865038010,-342.0,0.00022942,2]
[313169058,1706865038020,-5604.0,0.00022954,2]
[313169059,1706865038029,-8133.0,0.00022954,2]
[313169060,1706865038039,-1743.295,0.00022954,2]
[313169061,1706865038047,-3582.598,0.00022954,2]
[313169062,1706865038056,-2310.574,0.00022954,2]
[313169063,1706865038066,-353.847,0.00022954,2]
[313169064,1706865038074,-1034.0,0.00022954,2]
[313169065,1706865038084,-470.17891699,0.00022997,2]
[313169066,1706865038093,-203.22221247,0.00022997,2]
[313169067,1706865038103,-204.7712179,0.00022997,2]
[313169068,1706865038112,-632.50548353,0.00022997,2]
[313169069,1706865038121,-336.80956087,0.00022998,2]
[313169070,1706865038130,-1058.96659603,0.00022999,2]
[313169071,1706865038139,-135534.65916773,0.00022999,2]
[313169084,1706865041013,-28110.41783016,0.00022999,2]
[313169090,1706865044571,-1119.93869421,0.00022539,2]
[313169091,1706865044582,-8212.5530424,0.00022999,2]
[313169092,1706865044594,-271.8970049,0.00022999,2]
[313169093,1706865044680,-8112.03124072,0.00022999,2]
[313169094,1706865044793,-2963.26035017,0.00022999,2]
[313169112,1706865045782,-5222.47178857,0.00022999,2]
[313169113,1706865103887,622.39886001,0.00022077,2]
[313169114,1706865114017,164.46,0.00018481,2]
[313169115,1706865174148,276.65,0.00021029,2]
[313169119,1706865232742,611.90225922,0.00021029,2]
[313169120,1706865246739,611.90225922,0.00021029,2]
[313169121,1706865262731,611.90225922,0.00021029,2]
[313169122,1706865284748,611.90225922,0.00021029,2]
[313169123,1706865290747,293.38916151,0.00021029,2]
[313169124,1706865291211,155.15189738,0.00021029,2]
[313169125,1706865292357,246.78938768,0.00020697,2]
[313169126,1706865292778,848.83921823,0.00021029,2]
[313169127,1706865298005,5220.17566292,0.00021029,2]
[313169128,1706865300979,1122.77547519,0.00021029,2]
[313169129,1706865302750,449.73113877,0.00021029,2]
[313169130,1706865302937,3197.13386433,0.00022077,2]
[313169131,1706865303844,1039.32025311,0.00021029,2]
[313169132,1706865305556,209.74593681,0.00021029,2]
[313169133,1706865307153,1155.48233878,0.00020697,2]
[313169134,1706865307903,156.17255457,0.00020697,2]
[313169135,1706865310064,267.4127316,0.00021029,2]
[313169136,1706865313965,862.3794389,0.00021029,2]
[313169137,1706865314356,534.63116618,0.00021029,2]
[313169138,1706865316049,500.0,0.00021029,2]
[313169139,1706865316740,566.2579327,0.00020467,2]
[313169140,1706865316990,297.66991151,0.00021029,2]
[313169141,1706865317654,1025.76280394,0.00021029,2]
[313169142,1706865321168,766.88167903,0.00020697,2]
[313169143,1706865323870,5204.41118884,0.00021029,2]
[313169144,1706865326776,848.83921823,0.00021029,2]
[313169145,1706865328362,311.14270125,0.00021029,2]
[313169146,1706865329200,155.0,0.00021029,2]
[313169147,1706865331946,810.1516848,0.00021029,2]
[313169148,1706865332067,220.41136649,0.00021029,2]
[313169149,1706865333746,1027.55956204,0.00021029,2]
[313169150,1706865341877,5204.41118884,0.00021029,2]
[313169151,1706865342940,868.09004092,0.00021029,2]
[313169152,1706865345860,732.18690129,0.00021,2]
[313169153,1706865351204,155.0,0.00021029,2]
[313169154,1706865355408,2187.64640673,0.00020819,2]
[313169155,1706865363879,5204.41118884,0.00021029,2]
[313169156,1706865364068,209.0,0.000225,2]
[313169157,1706865369212,160.41886282,0.00021029,2]
[313169158,1706865371404,2187.64640673,0.00020819,2]
[313169159,1706865391415,2213.55690926,0.00020611,2]
[313169163,1706865598769,262.81,0.00020717,2]
[313169166,1706865936100,-2628.57372136,0.00022507,2]
[313169167,1706865936119,-155.0,0.00022508,2]
[313169168,1706865936138,-4165.69478956,0.00022508,2]
[313169169,1706865936157,-150.0,0.00022511,2]
[313169170,1706865936176,-691.58394825,0.00022511,2]
[313169171,1706865936195,-837.39,0.00022532,2]
[313169172,1706865936214,-1742.9620048,0.00022539,2]
[313169173,1706865936233,-161.08,0.00022612,2]
[313169174,1706865936253,-403.26,0.0002265,2]
[313169175,1706865936273,-1366.39,0.00022754,2]
[313169176,1706865936294,-4413.4511,0.000228,2]
[313169177,1706865936314,-154.15,0.00022804,2]
[313169178,1706865936336,-153.55670088,0.000229,2]
[313169179,1706865936355,-522.32116022,0.000229,2]
[313169180,1706865936374,-932.24796274,0.000229,2]
[313169181,1706865936394,-2648.0987132,0.000229,2]
[313169182,1706865936414,-975.76173534,0.00022981,3]
[313169183,1706865936436,-262.81,0.00022981,2]
[313169184,1706865936455,-500.0,0.00022997,2]
[313169185,1706865936475,-1227.45388453,0.00022997,2]
[313169186,1706865936495,-7575.51427722,0.00022997,2]
[313169187,1706866029199,-526.86546521,0.00022766,2]
[313169188,1706866029220,-4165.69478956,0.00022767,2]
[313169189,1706866029241,-7195.27991956,0.000229,2]
[313169190,1706866029262,-150.0,0.00022996,2]
[313169191,1706866029281,-2796.99306282,0.00022997,2]
[313169192,1706866029303,-4161.48992408,0.00022997,2]
[313169193,1706866029323,-630.55738904,0.00022997,2]
[313169194,1706866029343,-236.67130986,0.00022997,2]
[313169195,1706866029362,-155.44252608,0.00022997,2]
[313169196,1706866029382,-2672.38661975,0.00022997,2]
[313169197,1706866029402,-291.86276036,0.00022997,2]
[313169198,1706866029421,-312.20514002,0.00022998,2]
[313169199,1706866029452,-513.15121873,0.00022998,2]
[313169200,1706866029472,-1515.45151956,0.00022999,3]
[313169201,1706866029492,-724.62781573,0.00022999,2]
[313169202,1706866045085,-5520.00098826,0.00022999,2]
[313169203,1706866046084,-530.95850559,0.00022998,2]
[313169204,1706866046103,-1054.73834187,0.00022998,2]
[313169205,1706866046123,-93053.0161823,0.00022999,2]
[313169210,1706866231705,-235.27756359,0.00022998,2]
[313169211,1706866231715,-300.0,0.00022998,2]
[313169212,1706866231724,-150.0,0.00022998,2]
[313169213,1706866231733,-1437.34146512,0.00022999,3]
[313169214,1706866231742,-740.3858376,0.00022999,2]
[313169216,1706866231814,-1242.028,0.00022999,2]
[313169217,1706866231927,-1900.42103582,0.00022999,2]
[313169234,1706866237767,-342.82992223,0.00022999,2]
[313169235,1706866237928,-428.32625124,0.00022999,2]
[313169236,1706866237939,-10871.83225641,0.00022999,2]
[313169237,1706866237951,-11999.99887273,0.00022999,2]
[313169238,1706866238124,-6840.75279416,0.00022999,2]
[313169239,1706866238140,-901.07085474,0.00022999,2]
[313169241,1706866238151,-626.14298553,0.00022999,2]
[313169246,1706866240259,-682.47960675,0.00022999,2]
[313169247,1706866240271,-1425.15916734,0.00022999,2]
[313169248,1706866240282,-484.29600592,0.00022999,2]
[313169249,1706866240293,-1196.63849997,0.00022999,2]
[313169250,1706866240305,-44785.14010774,0.00022999,2]
[313169251,1706866240314,-1243.26452789,0.00022999,2]
[313169252,1706866240323,-155.42527609,0.00022999,2]
[313169253,1706866240332,-2000.0,0.00022999,2]
[313169254,1706866240346,-200.0,0.00022999,2]
[313169255,1706866240355,-500.76922776,0.00023,3]
[313169256,1706866240365,-150.0,0.00023,2]
[313169257,1706866240374,-150.0,0.00023,2]
[313169258,1706866240384,-150.26,0.00023,2]
[313169259,1706866240393,-428.0,0.00023,2]
[313169260,1706866240402,-236.0,0.00023,2]
[313169261,1706866240411,-203.645,0.00023,2]
[313169262,1706866240420,-1941.0,0.00023,2]
[313169263,1706866240430,-1001.0,0.00023,2]
[313169264,1706866240439,-859.0,0.00023,2]
[313169265,1706866240448,-320.0,0.00023,2]
[313169266,1706866240458,-150.0,0.00023,2]
[313169267,1706866240467,-444.0,0.00023,2]
[313169268,1706866240476,-388.0,0.00023,2]
[313169269,1706866240485,-1201.516,0.00023,2]
[313169270,1706866240494,-1352.0,0.00023,2]
[313169271,1706866240503,-2282.0,0.00023,2]
[313169272,1706866240512,-1769.957,0.00023,2]
[313169273,1706866240521,-839.0,0.00023,2]
[313169274,1706866240530,-1102.593,0.00023,2]
[313169275,1706866240539,-950.0,0.00023,2]
[313169276,1706866240548,-1034.0,0.00023,2]
[313169277,1706866240557,-4082.17108877,0.00023,2]
[313169278,1706866240568,-365.49689089,0.00023,2]
[313169279,1706866240579,-936.21000001,0.00023,2]
[313169280,1706866240591,-8421.80980072,0.00023,2]
[313169281,1706866240606,-1102.51309385,0.00023,2]
[313169282,1706866240957,-184401.99534175,0.00023,2]
[313169283,1706866241026,-234.59523032,0.00023,2]
[313169284,1706866241142,-541.16397787,0.00023,2]
[313169285,1706866241153,-2283.81170497,0.00023,2]
[313169286,1706866241165,-20000.0,0.00023,2]
[313169287,1706866241205,-357.71235685,0.00023,2]
[313169288,1706866241217,-384.87426094,0.00023,2]
[313169302,1706866242867,-3786.77823733,0.00023,2]
[313169303,1706866242879,-8144.52319297,0.00023,2]
[313169304,1706866242977,-764.71242322,0.00023,2]
[313169305,1706866243035,-2997.91200872,0.00023,2]
[313169306,1706866243047,-2995.24117464,0.00023,2]
[313169310,1706866248386,-425.86724695,0.00023,2]
[313169311,1706866248551,-768.06384375,0.00023,2]
[313169312,1706866248642,-11654.99999974,0.00023,2]
[313169313,1706866248669,-302.29212228,0.00023,2]
[313169314,1706866248681,-14816.54842653,0.00023,2]
[313169315,1706866248693,-254025.14920776,0.00023,2]
[313169316,1706866248727,-10808.49976856,0.00023,2]
[313169317,1706866248786,-15565.60955824,0.00023,2]
[313169318,1706866248799,-21486.49999999,0.00023,2]
[313169324,1706866294223,2493.13625924,0.00022308,2]
[313169325,1706866316808,184.40968132,0.00020698,2]
[313169332,1706866419215,173.89,0.00018022,2]
[313169333,1706866445492,9117.95767222,0.00021848,7]
[313169334,1706866448646,30830.06,0.00022463,2]
[313169335,1706866460146,322.61,0.00022396,2]
[313169336,1706866463464,4686.32682416,0.00021848,7]
[313169641,1706866473693,336.55,0.00020461,2]
[313169642,1706866498870,1223.71293071,0.00022458,2]
[313169662,1706866520375,517.84,0.00022338,2]
[313169663,1706866554043,186.28,0.00022274,10]
[313169664,1706866563855,200.0,0.00022274,2]
[313169665,1706866587185,179.96,0.00022333,2]
[313169666,1706866620817,1223.71293071,0.00022252,2]
[313169667,1706866636993,7084.94,0.00022167,2]
[313169668,1706866639478,305.59,0.00022167,2]
[313169669,1706866662279,544.41,0.00022333,2]
[313169670,1706866662486,544.41,0.00022394,2]
[313169671,1706866662859,544.41,0.00022456,2]
[313169672,1706866673725,23900.0,0.00021896,2]
[313169673,1706866702026,166.74,0.00021905,2]
[313169674,1706866738160,2000.0,0.00021905,2]
[313169675,1706866751843,528.41,0.00021918,2]
[313169676,1706866775746,4171.17,0.00021914,2]
[313169677,1706866813738,676.49072932,0.00021905,2]
[313169678,1706866817580,155.0,0.00021905,30]
[313169679,1706866830114,697.82,0.00021914,2]
[313169680,1706866891915,741.91,0.00021912,2]
[313169681,1706866902055,500.0,0.00021912,2]
[313169682,1706866919730,343.61,0.00020003,2]
[313169683,1706866920070,343.61,0.00022267,2]
[313169684,1706866983919,-150.0,0.00022501,2]
[313169685,1706866984417,-150.0,0.00022501,2]
[313169686,1706866987240,1223.71293072,0.00022488,2]
[313169687,1706866998315,830.17781161,0.000225,2]
[313169688,1706867011523,1045.03306234,0.000225,2]
[313169689,1706867024132,488.7248991,0.000225,2]
[313169690,1706867096964,200.0,0.00021953,2]
[313169691,1706867097151,200.0,0.00024697,120]
[313169692,1706867108635,488.7248991,0.000225,2]
[313169693,1706867114716,462.74,0.00022425,2]
[313169694,1706867115131,462.74,0.00022487,2]
[313169695,1706867129873,161.08,0.00021961,2]
[313169696,1706867187143,488.7248991,0.000225,2]
[313169697,1706867255666,488.7248991,0.000225,2]
[313169698,1706867273032,581.51,0.00021989,2]
[313169699,1706867330187,488.7248991,0.000225,2]
[313169702,1706867342871,406.47,0.00021978,2]
[313169703,1706867347123,162.44061598,0.00022446,2]
[313169704,1706867404399,300.0,0.00023,30]
[313169705,1706867404639,328.00294974,0.00023,30]
[313169706,1706867412674,488.7248991,0.000225,2]
[313169723,1706867431947,-345.084011,0.00022501,2]
[313169724,1706867432003,-1704.70094221,0.00022501,2]
[313169725,1706867432012,-150.0,0.00022501,2]
[313169726,1706867432021,-295.24905779,0.00022502,2]
[313169727,1706867432033,-869.03554055,0.00022502,2]
[313169728,1706867432112,-15652.21064704,0.00022502,2]
[313169729,1706867432126,-974.0,0.00022542,2]
[313169730,1706867432135,-518.38382827,0.00022546,2]
[313169731,1706867432145,-462.74,0.00022548,2]
[313169732,1706867432155,-462.74,0.0002261,2]
[313169733,1706867432164,-462.74,0.00022671,2]
[313169734,1706867432174,-462.74,0.00022733,2]
[313169735,1706867432183,-462.74,0.00022794,2]
[313169736,1706867432192,-849.67960663,0.00022856,3]
[313169737,1706867432200,-260.88453928,0.00022856,2]
[313169738,1706867432215,-201.85546072,0.00022856,2]
[313169739,1706867432225,-276.08975405,0.00022884,2]
[313169741,1706867432546,230.49,0.00021971,2]
[313169751,1706867437926,-28.91758032,0.00022884,2]
[313169752,1706867437936,-321.28352282,0.00022899,2]
[313169753,1706867438142,-502.61833434,0.00022899,2]
[313169754,1706867438154,-1183.1028271,0.00022899,2]
[313169755,1706867438223,-876.30395543,0.00022899,2]
[313169756,1706867438255,-4926.42992235,0.00022899,2]
[313169769,1706867440688,-468.67992952,0.00022899,2]
[313169770,1706867440700,-489.84713216,0.00022899,2]
[313169771,1706867440712,-1023.95612887,0.00022899,2]
[313169772,1706867440725,-372.46008747,0.00022899,2]
[313169773,1706867441239,-445.77293818,0.00022899,2]
[313169774,1706867441251,-420.88,0.00022899,2]
[313169775,1706867441264,-12863.12056393,0.00022899,2]
[313169776,1706867441273,-688.766,0.000229,2]
[313169777,1706867441282,-153.55670088,0.000229,2]
[313169778,1706867441291,-13085.5755,0.000229,2]
[313169779,1706867441300,-4717.68112199,0.000229,2]
[313169780,1706867441315,-1314.96246063,0.000229,2]
[313169781,1706867441353,-2102.7673685,0.000229,2]
[313169782,1706867441374,-1531.14617822,0.000229,2]
[313169783,1706867441410,-2935.80196007,0.000229,2]
[313169784,1706867441419,-162.44061598,0.000229,2]
[313169785,1706867441428,-193.14807763,0.000229,2]
[313169786,1706867441440,-1799.93229007,0.000229,2]
[313169787,1706867441451,-3723.81727995,0.000229,2]
[313169788,1706867441478,-1145.10809719,0.000229,6]
[313169794,1706867444660,-727.35,0.00022899,2]
[313169795,1706867444670,-1423.49564446,0.000229,6]
[313169796,1706867444772,-1588.94284284,0.000229,6]
[313169797,1706867444784,-2134.64991771,0.000229,6]
[313169798,1706867444887,-718.16092439,0.000229,6]
[313169799,1706867444898,-699.97383151,0.000229,6]
[313169800,1706867444944,-206.06749937,0.000229,6]
[313169801,1706867444954,-462.74,0.00022917,2]
[313169802,1706867444963,-1911.3202,0.00022959,10]
[313169803,1706867444972,-217.13404145,0.00022975,2]
[313169804,1706867444981,-462.74,0.00022979,2]
[313169805,1706867444991,-431.93674951,0.00022998,2]
[313169806,1706867445000,-177.10471114,0.00022998,2]
[313169807,1706867445010,-155.41363667,0.00022998,2]
[313169808,1706867445019,-698.41762816,0.00022998,2]
[313169809,1706867445028,-364.8020434,0.00022998,2]
[313169810,1706867445038,-653.09828459,0.00022998,2]
[313169814,1706867445944,-559.1732823,0.00022998,2]
[313169815,1706867445953,-155.0,0.00022998,2]
[313169816,1706867445963,-401.64065219,0.00022998,2]
[313169817,1706867445972,-283.3250881,0.00022998,2]
[313169818,1706867445981,-358.43337229,0.00022998,2]
[313169819,1706867445990,-527.07565785,0.00022998,2]
[313169820,1706867446000,-158.11329405,0.00022998,2]
[313169821,1706867446010,-197.29019107,0.00022998,2]
[313169822,1706867446019,-171.6384234,0.00022998,2]
[313169823,1706867446028,-155.36060082,0.00022998,2]
[313169824,1706867446037,-233.82550788,0.00022998,2]
[313169825,1706867446047,-500.0,0.00022998,2]
[313169826,1706867446056,-175.11526788,0.00022998,2]
[313169827,1706867446066,-101.20866217,0.00022998,2]
[313169828,1706867446078,-116.2166262,0.00022998,2]
[313169829,1706867446087,-1375.07063722,0.00022998,2]
[313169830,1706867446096,-562.17485463,0.00022998,2]
[313169831,1706867446106,-178.30190912,0.00022998,2]
[313169832,1706867446115,-1477.54622119,0.00022998,2]
[313169833,1706867446230,-1127.45410119,0.00022998,2]
[313169834,1706867446239,-366.360417,0.00022998,2]
[313169835,1706867446249,-4711.10874324,0.00022998,2]
[313169836,1706867446258,-497.6362364,0.00022998,2]
[313169837,1706867446267,-1558.03644217,0.00022998,2]
[313169838,1706867446277,-6453.41251802,0.00022998,2]
[313169839,1706867446286,-1402.48848741,0.00022998,2]
[313169840,1706867446296,-543.53122231,0.00022998,2]
[313169841,1706867446306,-155.0,0.00022998,2]
[313169842,1706867446315,-192.20939672,0.00022998,2]
[313169843,1706867446324,-247.71451766,0.00022998,2]
[313169844,1706867446333,-228.92260854,0.00022998,2]
[313169845,1706867446342,-527.47161391,0.00022998,2]
[313169846,1706867446351,-1052.66597639,0.00022998,2]
[313169847,1706867446360,-771.71029735,0.00022998,2]
[313169848,1706867446369,-155.0,0.00022998,2]
[313169849,1706867446379,-3279.27742189,0.00022998,2]
[313169850,1706867446395,-4312.20408656,0.00022975,2]
[313169851,1706867446404,-383.82132906,0.00022998,2]
[313169852,1706867446413,-285.86421841,0.00022998,2]
[313169853,1706867446424,-412.60435791,0.00022998,2]
[313169854,1706867446433,-24.13405975,0.00022998,2]
[313169855,1706867446449,-10560.53582522,0.00022998,2]
[313169856,1706867446458,-437.73416891,0.00022998,2]
[313169857,1706867446467,-1146.08153699,0.00022998,2]
[313169858,1706867446476,-488.7248991,0.00022998,2]
[313169859,1706867446486,-155.54747941,0.00022999,2]
[313169860,1706867446495,-577.81805629,0.00022999,2]
[313169861,1706867446504,-156.00434177,0.00022999,2]
[313169862,1706867446513,-243.13018823,0.00022999,2]
[313169863,1706867446522,-203.22221247,0.00022999,2]
[313169864,1706867446531,-162.66203163,0.00022999,2]
[313169865,1706867446540,-250.53011376,0.00022999,2]
[313169866,1706867446550,-388.05003353,0.00022999,2]
[313169867,1706867446559,-527.17461654,0.00022999,2]
[313169868,1706867446568,-362.66839239,0.00022999,2]
[313169869,1706867446577,-204.76416479,0.00022999,2]
[313169870,1706867446586,-155.22623169,0.00022999,2]
[313169871,1706867446596,-219.58928051,0.00022999,2]
[313169872,1706867446605,-155.63591195,0.00022999,2]
[313169873,1706867446615,-159.23228713,0.00022999,2]
[313169874,1706867446624,-1499.96798377,0.00022999,2]
[313169875,1706867446633,-291.04164533,0.00022999,2]
[313169876,1706867446642,-1182.8400885,0.00022999,2]
[313169877,1706867446652,-2617.00283941,0.00022999,2]
[313169878,1706867446661,-392.66407142,0.00022999,10]
[313169879,1706867446670,-392.66407142,0.00022999,10]
[313169880,1706867446680,-392.66407142,0.00022999,10]
[313169881,1706867446690,-250.38461388,0.00023,3]
[313169882,1706867446829,-534.0,0.00023,2]
[313169883,1706867446838,-950.0,0.00023,2]
[313169884,1706867446847,-839.0,0.00023,2]
[313169885,1706867446858,-1941.0,0.00023,2]
[313169886,1706867446867,-316.184,0.00023,2]
[313169887,1706867446876,-237.31,0.00023,2]
[313169888,1706867446885,-428.0,0.00023,2]